bitfinex-derivatives/quotes_BTCF0:USTF0_20250620
["timestamp","ask_amount","ask_price","bid_price","bid_amount"]
[1750430314936,0.13475969,105440.0,105430.0,2.17161845]
[1750430315138,0.13275969,105440.0,105430.0,2.17761845]
[1750430315941,0.03869642,105440.0,105430.0,2.18179252]
[1750430316131,0.13275969,105440.0,105430.0,2.18179252]
[1750430316637,0.57974825,105460.0,105450.0,0.1896483]
[1750430316939,0.44806665,105460.0,105450.0,1.7922086]
[1750430317142,0.44806665,105460.0,105450.0,1.8222086]
[1750430317439,0.48136665,105460.0,105450.0,1.8539086]
[1750430317733,0.12256665,105460.0,105450.0,1.8866086]
[1750430317939,0.12256665,105460.0,105450.0,1.0348506]
[1750430318235,0.12256665,105460.0,105450.0,1.8566086]
[1750430318739,0.48336665,105460.0,105450.0,1.8266086]
[1750430318934,0.48336665,105460.0,105450.0,1.7939086]
[1750430319134,0.72299695,105460.0,105450.0,0.9702906]
[1750430319338,0.67299695,105460.0,105450.0,0.9702906]
[1750430319732,0.70339695,105460.0,105450.0,0.9702506]
[1750430320535,0.6161303,105460.0,105450.0,1.3537292]
[1750430320838,0.4265,105460.0,105450.0,1.35398047]
[1750430321035,0.61461657,105460.0,105450.0,1.35398047]
[1750430321533,0.61461657,105460.0,105450.0,0.87222247]
[1750430321734,0.61461657,105460.0,105450.0,1.68398047]
[1750430322135,0.61461657,105460.0,105450.0,1.70668047]
[1750430322345,0.61461657,105460.0,105450.0,1.38668047]
[1750430322532,0.25381657,105460.0,105450.0,0.90492247]
[1750430322739,0.25381657,105460.0,105450.0,1.71398047]
[1750430323040,0.22341657,105460.0,105450.0,1.68588801]
[1750430323245,0.22341657,105460.0,105450.0,1.71688801]
[1750430323545,0.22341657,105460.0,105450.0,1.73688801]
[1750430324438,0.22341657,105460.0,105450.0,1.69036361]
[1750430324633,0.58421657,105460.0,105450.0,1.68111478]
[1750430324837,0.22341657,105460.0,105450.0,1.68111478]
[1750430325037,0.58421657,105460.0,105450.0,1.68111478]
[1750430325240,0.4272,105460.0,105450.0,1.68111478]
[1750430325443,0.0664,105460.0,105450.0,1.68111478]
[1750430325944,0.0664,105460.0,105450.0,0.81935678]
[1750430326143,0.0664,105460.0,105450.0,1.30111478]
[1750430326144,0.4272,105460.0,105450.0,1.30111478]
[1750430326646,0.4272,105460.0,105450.0,1.1872815]
[1750430327348,0.4272,105460.0,105450.0,1.1562815]
[1750430327946,0.4272,105460.0,105450.0,1.09936488]
[1750430328640,0.53250609,105460.0,105450.0,1.09936488]
[1750430328847,0.15485967,105470.0,105460.0,0.1896303]
[1750430329044,0.10348233,105470.0,105460.0,2.24912685]
[1750430329345,0.0318,105500.0,105490.0,0.1895763]
[1750430329645,0.0318,105500.0,105490.0,2.17156872]
[1750430329848,0.0318,105500.0,105490.0,1.81156872]
[1750430330346,0.0642,105500.0,105490.0,1.88641907]
[1750430330848,0.0642,105500.0,105490.0,1.89704996]
[1750430331747,0.0642,105500.0,105490.0,1.89804996]
[1750430333446,0.0642,105500.0,105490.0,1.89830123]
[1750430336847,0.0642,105500.0,105490.0,1.93050123]
[1750430337355,0.0642,105500.0,105490.0,1.44874323]
[1750430337553,0.0642,105500.0,105490.0,1.93050123]
[1750430338259,0.15824613,105500.0,105490.0,1.93050123]
[1750430338652,0.15824613,105500.0,105490.0,2.30150718]
[1750430338653,0.09504613,105500.0,105490.0,2.30150718]
[1750430338853,0.09504613,105500.0,105490.0,2.33320718]
[1750430339053,0.01664733,105510.0,105500.0,0.1895588]
[1750430339249,0.01664733,105510.0,105500.0,2.3785968]
[1750430339554,0.19706706,105530.0,105520.0,0.1895229]
[1750430339752,0.19706706,105530.0,105520.0,0.76332]
[1750430339956,0.38657196,105530.0,105520.0,0.9528429]
[1750430340153,0.2843036,105520.0,105510.0,0.1895351]
[1750430340372,1.5886307,105520.0,105510.0,0.76328]
[1750430340556,0.1895408,105510.0,105500.0,0.98704102]
[1750430340755,0.64832416,105510.0,105500.0,1.78783982]
[1750430340958,0.98832416,105510.0,105500.0,1.78783982]
[1750430341157,1.23108216,105510.0,105500.0,0.01556102]
[1750430341351,0.1895588,105500.0,105490.0,1.04368411]
[1750430341549,1.51080016,105500.0,105490.0,0.77925696]
[1750430341762,2.16038416,105500.0,105490.0,0.01605696]
[1750430341950,0.1895948,105480.0,105470.0,1.7149701]
[1750430342149,1.08275758,105480.0,105470.0,1.9143726]
[1750430342366,1.11605758,105480.0,105470.0,1.10567795]
[1750430342554,1.45605758,105480.0,105470.0,0.34251795]
[1750430342857,1.49605758,105480.0,105470.0,1.05827545]
[1750430343066,1.11605758,105480.0,105470.0,0.35231805]
[1750430343261,1.58685758,105480.0,105470.0,0.16270535]
[1750430343461,1.52685758,105480.0,105470.0,0.35231805]
[1750430343662,1.81685758,105480.0,105470.0,0.35231805]
[1750430344156,1.89685758,105480.0,105470.0,0.01070535]
[1750430344363,1.89685758,105480.0,105460.0,1.11085345]
[1750430344364,0.1896127,105470.0,105460.0,1.11085345]
[1750430344563,0.73615406,105470.0,105460.0,1.11085345]
[1750430344867,0.25439606,105470.0,105460.0,1.11085345]
[1750430345061,0.28669606,105470.0,105460.0,1.11085345]
[1750430345456,0.22319606,105470.0,105460.0,1.16085345]
[1750430345657,0.22319606,105470.0,105460.0,1.23793345]
[1750430345856,0.22319606,105470.0,105460.0,1.24900447]
[1750430346057,0.03358336,105470.0,105460.0,2.04156247]
[1750430346259,0.10882658,105470.0,105460.0,2.41556247]
[1750430346462,0.09002285,105470.0,105460.0,2.41556247]
[1750430346764,0.09002285,105470.0,105460.0,2.58934392]
[1750430347662,0.09002285,105470.0,105460.0,2.60480419]
[1750430348763,0.00847598,105480.0,105470.0,0.1896126]
[1750430348963,8e-08,105480.0,105470.0,2.2561366]
[1750430349159,1.43159375,105520.0,105500.0,0.1895587]
[1750430349361,1.07079375,105520.0,105510.0,0.76292]
[1750430349564,1.29992669,105520.0,105510.0,0.9524607]
[1750430349754,0.93912669,105520.0,105510.0,0.9524607]
[1750430349960,1.29992669,105520.0,105510.0,0.9524607]
[1750430350266,1.30028087,105520.0,105510.0,0.9524607]
[1750430350463,0.1895587,105500.0,105490.0,0.2053507]
[1750430350660,1.0321167,105500.0,105490.0,0.3573507]
[1750430350857,1.4044167,105500.0,105490.0,0.152]
[1750430351066,1.4219133,105500.0,105490.0,0.152]
[1750430351463,1.3797458,105500.0,105470.0,0.67987587]
[1750430351669,0.1895946,105480.0,105470.0,0.38947817]
[1750430351863,0.207027,105480.0,105470.0,1.15231817]
[1750430352062,0.2518946,105480.0,105470.0,1.06137587]
[1750430352563,0.7336526,105480.0,105470.0,0.28857587]
[1750430352757,0.7336526,105480.0,105470.0,1.06437587]
[1750430352963,0.7336526,105480.0,105470.0,0.45357587]
[1750430353278,1.0944526,105480.0,105470.0,1.06433587]
[1750430353472,1.0944526,105480.0,105470.0,1.01693367]
[1750430353663,0.6126946,105480.0,105470.0,1.01893367]
[1750430353865,1.0944526,105480.0,105470.0,1.01918494]
[1750430354371,1.0944526,105480.0,105470.0,0.97178354]
[1750430354572,0.4231,105480.0,105470.0,0.97178354]
[1750430354770,0.2518945,105480.0,105470.0,0.20902354]
[1750430354974,1.46158928,105480.0,105470.0,0.20902354]
[1750430355166,1.11158928,105480.0,105470.0,0.20902354]
[1750430355365,1.11158928,105480.0,105470.0,0.97170354]
[1750430355565,0.75078928,105480.0,105470.0,0.20902354]
[1750430355767,0.26903128,105480.0,105470.0,0.97170354]
[1750430358464,0.2518945,105480.0,105470.0,0.97170354]
[1750430358663,0.6126945,105480.0,105470.0,0.97170354]
[1750430358865,0.2518945,105480.0,105470.0,0.97170354]
[1750430359175,0.0315,105480.0,105470.0,0.97170354]
[1750430359372,0.0315,105480.0,105470.0,1.48386154]
[1750430359565,0.81567873,105490.0,105480.0,0.1895945]
[1750430359875,0.84737873,105490.0,105480.0,0.1895945]
[1750430360376,0.77218482,105490.0,105480.0,0.1895945]
[1750430360675,1.61394282,105490.0,105480.0,0.1895945]
[1750430360980,0.1895945,105480.0,105470.0,0.01942534]
[1750430361279,1.47343907,105480.0,105470.0,0.95787784]
[1750430361476,1.47343907,105480.0,105470.0,0.19603784]
[1750430361477,1.12343907,105480.0,105470.0,0.19603784]
[1750430361675,1.44343907,105480.0,105470.0,0.76826534]
[1750430361875,1.54343907,105480.0,105470.0,0.95587784]
[1750430362076,2.21481307,105480.0,105470.0,0.00442534]
[1750430362265,2.19000698,105480.0,105470.0,0.00442534]
[1750430362465,2.21000698,105480.0,105470.0,0.01742534]
[1750430362779,1.72824898,105480.0,105470.0,0.01942534]
[1750430363371,2.46000698,105480.0,105470.0,0.01942534]
[1750430363575,0.1896304,105460.0,105450.0,0.3884451]
[1750430363781,1.43767388,105460.0,105450.0,0.1514]
[1750430363976,1.46917388,105460.0,105450.0,0.76172]
[1750430364378,1.84917388,105460.0,105450.0,0.76172]
[1750430364578,1.46917388,105460.0,105450.0,0.9513684]
[1750430364780,0.62661588,105460.0,105450.0,0.96201347]
[1750430365176,0.62661588,105460.0,105450.0,0.97701347]
[1750430366379,0.26581588,105460.0,105450.0,1.01111347]
[1750430366577,0.23431588,105460.0,105450.0,1.49287147]
[1750430366777,0.23431588,105460.0,105450.0,1.52377147]
[1750430366978,0.23431588,105460.0,105450.0,1.88457147]
[1750430367175,0.21731697,105460.0,105450.0,2.22457147]
[1750430367380,0.02768657,105460.0,105450.0,2.22457147]
[1750430367886,0.2844113,105480.0,105470.0,0.1896125]
[1750430367887,0.3318143,105480.0,105470.0,0.1896125]
[1750430368080,0.31202691,105480.0,105470.0,0.9512925]
[1750430368292,0.31202691,105480.0,105470.0,1.0132925]
[1750430368784,0.34312691,105480.0,105470.0,1.01746657]
[1750430369487,0.35012691,105480.0,105470.0,1.37826657]
[1750430369685,0.22422491,105480.0,105470.0,1.37826657]
[1750430369885,0.22421011,105480.0,105470.0,1.37826657]
[1750430370187,0.22221011,105480.0,105470.0,1.38026657]
[1750430370486,0.25231011,105480.0,105470.0,1.01946657]
[1750430370986,0.25231011,105480.0,105470.0,1.01930657]
[1750430371686,0.22221011,105480.0,105470.0,1.38010657]
[1750430371887,0.03261561,105480.0,105470.0,3.01142457]
[1750430372087,0.02761561,105480.0,105470.0,3.01142457]
[1750430372286,0.02761561,105480.0,105470.0,3.01842457]
[1750430373389,0.3800495,105500.0,105490.0,0.1895765]
[1750430373683,0.40772281,105500.0,105490.0,0.9509765]
[1750430373888,0.23472841,105500.0,105490.0,1.8259345]
[1750430374089,0.23472841,105500.0,105490.0,1.8586345]
[1750430374289,0.04516991,105500.0,105490.0,1.3768765]
[1750430374493,0.23472841,105500.0,105490.0,1.3768765]
[1750430374788,0.23472841,105500.0,105490.0,1.45312604]
[1750430374989,0.26702841,105500.0,105490.0,1.45312604]
[1750430375389,0.27202841,105500.0,105490.0,1.45312604]
[1750430375589,0.05116991,105500.0,105490.0,1.45312604]
[1750430375790,0.24072841,105500.0,105490.0,1.45312604]
[1750430376187,0.24072841,105500.0,105490.0,1.93488404]
[1750430376590,0.24072841,105500.0,105490.0,1.42042604]
[1750430376777,0.30602841,105500.0,105490.0,1.42042604]
[1750430377984,1.46858641,105500.0,105490.0,1.02698604]
[1750430378185,0.98682841,105500.0,105490.0,1.02698604]
[1750430378383,1.46858641,105500.0,105490.0,0.07624954]
[1750430378581,0.1895765,105490.0,105480.0,0.2369756]
[1750430378781,0.1895945,105480.0,105470.0,1.17423597]
[1750430379086,0.1895945,105480.0,105470.0,1.93531597]
[1750430379087,0.28006781,105480.0,105470.0,1.93531597]
[1750430379590,0.24736781,105480.0,105470.0,1.93531597]
[1750430380187,0.02767331,105480.0,105470.0,2.30311597]
[1750430380390,0.39020438,105490.0,105480.0,0.1895945]
[1750430380583,0.41788536,105490.0,105480.0,0.2556945]
[1750430380784,0.27569426,105490.0,105480.0,0.2556945]
[1750430380978,0.21927108,105490.0,105480.0,0.2556945]
[1750430381182,0.02968098,105490.0,105480.0,0.7374525]
[1750430381685,0.02768098,105490.0,105480.0,1.0982525]
[1750430382088,0.02768098,105490.0,105480.0,0.6164945]
[1750430382285,0.02768098,105490.0,105480.0,0.6174945]
[1750430382691,0.02968098,105490.0,105480.0,0.6174945]
[1750430383086,0.02968098,105490.0,105480.0,1.0992525]
[1750430383890,0.02968098,105490.0,105480.0,1.4792525]
[1750430385592,0.02968098,105490.0,105480.0,1.1184525]
[1750430385988,0.21925748,105490.0,105480.0,0.2566945]
[1750430386193,0.02968098,105490.0,105480.0,0.6174945]
[1750430386395,0.21925748,105490.0,105480.0,1.3781745]
[1750430386585,0.21925748,105490.0,105480.0,0.6174945]
[1750430386790,0.25025748,105490.0,105480.0,1.3781345]
[1750430387390,0.74912015,105490.0,105480.0,0.3412345]
[1750430387589,0.78162015,105490.0,105480.0,0.9504345]
[1750430387995,0.78162015,105490.0,105480.0,0.3412345]
[1750430388197,0.78162015,105490.0,105480.0,0.9503945]
[1750430388397,0.29986215,105490.0,105480.0,0.9503945]
[1750430389891,0.04678565,105490.0,105480.0,0.9503945]
[1750430390098,0.04678565,105490.0,105480.0,1.0123945]
[1750430390099,0.05095972,105490.0,105480.0,1.0123945]
[1750430390392,0.24053622,105490.0,105480.0,1.0123945]
[1750430390798,0.08115972,105490.0,105480.0,1.0123145]
[1750430391292,0.27073622,105490.0,105480.0,1.0123145]
[1750430391692,0.08115972,105490.0,105480.0,1.0123145]
[1750430391891,0.27073622,105490.0,105480.0,1.0123145]
[1750430392093,0.08115972,105490.0,105480.0,1.0123145]
[1750430393405,0.05347874,105490.0,105480.0,1.0123145]
[1750430393895,0.60385524,105490.0,105480.0,0.2525945]
[1750430394197,0.05347874,105490.0,105480.0,1.7926725]
[1750430394397,0.05097441,105490.0,105480.0,1.8229725]
[1750430394591,0.05097441,105490.0,105480.0,1.4226145]
[1750430394797,0.05097441,105490.0,105480.0,1.9043725]
[1750430395490,0.05097441,105490.0,105480.0,1.8543725]
[1750430395691,0.05097441,105490.0,105480.0,2.2343725]
[1750430396104,0.05097441,105490.0,105480.0,1.9043725]
[1750430398391,0.05097441,105490.0,105480.0,1.4226145]
[1750430398597,0.05097441,105490.0,105480.0,1.9103725]
[1750430398797,0.04897441,105490.0,105480.0,1.9123725]
[1750430399104,0.04897441,105490.0,105480.0,1.9153725]
[1750430399498,0.04897441,105490.0,105480.0,1.9133725]
[1750430399698,0.04897441,105490.0,105480.0,1.9163725]
[1750430400200,0.23855091,105490.0,105480.0,0.6750945]
[1750430400399,1.10030891,105490.0,105480.0,0.3532344]
[1750430400601,1.14470891,105490.0,105480.0,0.9617944]
[1750430400797,0.78390891,105490.0,105480.0,0.9617944]
[1750430401105,0.84040364,105490.0,105480.0,0.9617944]
[1750430401300,1.58120364,105490.0,105480.0,0.9617944]
[1750430401501,0.35864564,105490.0,105480.0,0.2025944]
[1750430401800,0.04897441,105490.0,105480.0,1.8363524]
[1750430402100,0.04897441,105490.0,105480.0,1.8674524]
[1750430402706,0.04897441,105490.0,105480.0,1.3856944]
[1750430402901,0.04897441,105490.0,105480.0,1.0248944]
[1750430403100,0.04897441,105490.0,105480.0,1.8674524]
[1750430405500,0.04897441,105490.0,105480.0,1.1082524]
[1750430405808,0.23855131,105490.0,105480.0,0.9935144]
[1750430406002,1.51450931,105490.0,105480.0,0.013]
[1750430406202,1.56100404,105490.0,105480.0,0.2025949]
[1750430406501,1.58100404,105490.0,105480.0,0.9614749]
[1750430407406,1.08924604,105490.0,105480.0,0.9614749]
[1750430407706,1.20100404,105490.0,105480.0,0.9614749]
[1750430407906,1.52100404,105490.0,105480.0,0.9614749]
[1750430408409,1.03924604,105490.0,105480.0,0.9614749]
[1750430409507,1.03924604,105490.0,105480.0,0.2025949]
[1750430410806,1.03924604,105490.0,105480.0,0.9613149]
[1750430411005,1.20100404,105490.0,105480.0,0.2025949]
[1750430411309,1.21983562,105490.0,105480.0,0.77164]
[1750430411505,1.70983562,105490.0,105480.0,0.77164]
[1750430411701,1.70983562,105490.0,105480.0,0.16364]
[1750430411902,1.70983562,105490.0,105480.0,0.013]
[1750430412099,2.35847671,105490.0,105460.0,0.7586]
[1750430412407,1.13617566,105470.0,105460.0,0.7586]
[1750430412608,1.16387133,105470.0,105460.0,0.9482308]
[1750430412800,1.70597133,105470.0,105460.0,0.9482308]
[1750430413000,1.59597133,105470.0,105460.0,0.9482308]
[1750430413200,1.34597133,105470.0,105460.0,0.1936308]
[1750430413401,1.55597133,105470.0,105460.0,0.2056308]
[1750430413606,1.55597133,105470.0,105460.0,0.9641908]
[1750430414206,1.55597133,105470.0,105460.0,0.77456]
[1750430415004,1.55597133,105470.0,105460.0,0.62384]
[1750430415404,1.55597133,105470.0,105460.0,0.62284]
[1750430415611,1.07421333,105470.0,105460.0,0.61384]
[1750430415805,1.55597133,105470.0,105460.0,0.61384]
[1750430416002,2.02677133,105470.0,105460.0,0.61384]
[1750430416305,0.1896307,105460.0,105450.0,0.97462572]
[1750430416498,0.72978437,105460.0,105450.0,0.21606572]
[1750430416702,1.12318437,105460.0,105450.0,0.21606572]
[1750430417001,1.12318437,105460.0,105450.0,0.97454572]
[1750430417210,1.44318437,105460.0,105450.0,0.97454572]
[1750430417512,1.12318437,105460.0,105450.0,0.97454572]
[1750430417810,1.47318437,105460.0,105450.0,0.95793347]
[1750430418006,1.47318437,105460.0,105450.0,0.76828507]
[1750430418199,1.12318437,105460.0,105450.0,0.35017347]
[1750430418405,1.12318437,105460.0,105450.0,0.95793347]
[1750430418703,1.73541547,105460.0,105450.0,0.60776]
[1750430418902,0.1896484,105450.0,105440.0,0.43531226]
[1750430419110,1.46350207,105450.0,105440.0,0.28543226]
[1750430419310,1.46350207,105450.0,105440.0,0.00094836]
[1750430419505,1.64350207,105450.0,105440.0,0.75854836]
[1750430419810,1.61009983,105450.0,105440.0,0.60866836]
[1750430420008,1.61009983,105450.0,105440.0,0.61566836]
[1750430420209,1.68977183,105450.0,105440.0,0.00794836]
[1750430420406,2.39745183,105450.0,105440.0,0.01094836]
[1750430420715,2.34085407,105450.0,105440.0,0.00894836]
[1750430420917,2.59085407,105450.0,105440.0,0.00894836]
[1750430421212,2.59085407,105450.0,105440.0,0.00794836]
[1750430421705,2.6471469,105450.0,105440.0,0.00794836]
[1750430422314,2.6471469,105450.0,105440.0,0.00294836]
[1750430422513,1.8394669,105450.0,105440.0,0.00594836]
[1750430422710,2.4471069,105450.0,105440.0,0.00594836]
[1750430422909,2.4471069,105450.0,105440.0,0.00494836]
[1750430423510,1.5497949,105450.0,105440.0,0.15482836]
[1750430424013,1.7597949,105450.0,105440.0,0.15482836]
[1750430424315,1.5497949,105450.0,105440.0,0.15482836]
[1750430424518,1.1797949,105450.0,105440.0,0.15482836]
[1750430425112,1.46350207,105450.0,105440.0,0.15482836]
[1750430425512,1.47350207,105450.0,105440.0,0.15482836]
[1750430426219,1.12350207,105450.0,105440.0,0.15482836]
[1750430426419,1.45350207,105450.0,105440.0,0.15482836]
[1750430427810,1.7197949,105450.0,105440.0,0.15482836]
[1750430428011,0.1475885,105450.0,105440.0,0.34449456]
[1750430428209,0.02769567,105450.0,105440.0,1.13727876]
[1750430428409,0.02769567,105450.0,105440.0,2.18383676]
[1750430428818,0.05829914,105450.0,105440.0,2.18383676]
[1750430429424,0.05829914,105450.0,105440.0,1.70207876]
[1750430429613,1.10742432,105450.0,105440.0,0.08425256]
[1750430429815,1.10742432,105450.0,105440.0,0.27551849]
[1750430430010,1.10702432,105450.0,105440.0,0.27551849]
[1750430430320,3.27540715,105450.0,105440.0,9e-08]
[1750430430524,3.25021432,105450.0,105440.0,9e-08]
[1750430430825,0.1896839,105430.0,105420.0,0.01925666]
[1750430431020,1.05993757,105430.0,105420.0,0.1897019]
[1750430431219,1.45393757,105430.0,105420.0,0.1897019]
[1750430431416,0.1897019,105420.0,105410.0,0.46787508]
[1750430431612,1.43285557,105420.0,105410.0,0.00094863]
[1750430431813,2.15744098,105420.0,105410.0,0.00134863]
[1750430432018,0.1897198,105410.0,105400.0,0.0008]
[1750430432218,0.1897378,105400.0,105390.0,0.0303]
[1750430432518,0.1897558,105390.0,105380.0,0.1915063]
[1750430432720,0.22770274,105390.0,105380.0,0.5818063]
[1750430433022,0.58850274,105390.0,105380.0,1.0112263]
[1750430433222,0.57850274,105390.0,105380.0,1.0108263]
[1750430433423,0.58850274,105390.0,105380.0,1.0112263]
[1750430433725,0.57850274,105390.0,105380.0,1.0112263]
[1750430434022,0.58950274,105390.0,105380.0,1.0223863]
[1750430434220,1.16126074,105390.0,105380.0,0.0753489]
[1750430434421,1.60106957,105390.0,105380.0,0.0123489]
[1750430434627,1.45156957,105390.0,105380.0,0.2017233]
[1750430434830,1.68376957,105390.0,105380.0,0.3823433]
[1750430435017,1.68376957,105390.0,105380.0,0.0123489]
[1750430435325,1.48376957,105390.0,105380.0,0.0123489]
[1750430435519,1.12376957,105390.0,105380.0,0.2021232]
[1750430435715,0.21851207,105390.0,105380.0,0.8334012]
[1750430435915,0.02875577,105390.0,105380.0,0.4143432]
[1750430436122,0.21888834,105390.0,105380.0,1.2569012]
[1750430436319,0.21888834,105390.0,105380.0,0.7751432]
[1750430436629,0.21888834,105390.0,105380.0,1.3825432]
[1750430436823,0.02913204,105390.0,105380.0,1.3825432]
[1750430437222,0.02913204,105390.0,105380.0,1.8643012]
[1750430437730,0.21888854,105390.0,105380.0,1.3825432]
[1750430438531,0.21888854,105390.0,105380.0,0.6252232]
[1750430438918,0.21888854,105390.0,105380.0,1.3825032]
[1750430439324,0.53888854,105390.0,105380.0,1.3825032]
[1750430439519,0.53888854,105390.0,105380.0,0.1932089]
[1750430439520,1.07144654,105390.0,105380.0,0.1932089]
[1750430439737,1.44304654,105390.0,105380.0,0.1619089]
[1750430440029,1.01741764,105390.0,105380.0,0.1623089]
[1750430440233,1.49917564,105390.0,105380.0,0.1619089]
[1750430440527,1.49917564,105390.0,105380.0,0.1623089]
[1750430440731,1.69917564,105390.0,105380.0,0.0123489]
[1750430441637,0.1897745,105380.0,105370.0,0.14996]
[1750430441821,0.1897925,105370.0,105360.0,0.2855]
[1750430442027,1.60983127,105370.0,105360.0,0.1905958]
[1750430442228,1.43308254,105370.0,105360.0,0.1897958]
[1750430442435,0.95132454,105370.0,105360.0,0.2526958]
[1750430443228,1.43308254,105370.0,105360.0,0.0004]
[1750430443424,1.43308254,105370.0,105360.0,0.1902105]
[1750430443425,1.61199502,105370.0,105360.0,0.1902105]
[1750430443633,1.61199502,105370.0,105360.0,0.1898105]
[1750430444031,1.55588254,105370.0,105360.0,0.1902105]
[1750430444232,1.55688254,105370.0,105360.0,0.2012105]
[1750430444431,0.93232454,105370.0,105360.0,0.2339105]
[1750430444634,1.09408254,105370.0,105360.0,0.2339105]
[1750430444835,1.12498254,105370.0,105360.0,0.3838705]
[1750430445131,1.57408254,105370.0,105360.0,0.0114]
[1750430445333,1.63019502,105370.0,105360.0,0.0114]
[1750430445538,1.66109502,105370.0,105360.0,0.0114]
[1750430445738,1.56088218,105370.0,105360.0,0.011]
[1750430446036,1.75088218,105370.0,105360.0,0.0114]
[1750430446235,1.94069818,105370.0,105360.0,0.011]
[1750430446436,2.9737437,105370.0,105360.0,0.0114]
[1750430446632,2.56744938,105370.0,105360.0,0.011]
[1750430446834,2.56744938,105370.0,105360.0,0.0114]
[1750430447233,2.56644938,105370.0,105360.0,0.0024]
[1750430447741,1.95904938,105370.0,105360.0,0.0024]
[1750430447935,2.56644938,105370.0,105360.0,0.0024]
[1750430448128,2.37663338,105370.0,105360.0,0.0024]
[1750430448328,0.1898104,105360.0,105350.0,0.00094917]
[1750430448532,2.13043531,105360.0,105350.0,0.00057284]
[1750430448736,2.64573099,105360.0,105350.0,0.00057284]
[1750430448941,2.64573099,105360.0,105350.0,0.00097284]
[1750430448942,2.64598226,105360.0,105350.0,0.00097284]
[1750430449142,0.1898464,105340.0,105330.0,0.14952]
[1750430449442,2.04420928,105340.0,105330.0,0.3401845]
[1750430449645,1.89580928,105340.0,105330.0,0.3401845]
[1750430449942,2.09580928,105340.0,105330.0,0.15032]
[1750430450241,2.09580928,105340.0,105330.0,0.3401845]
[1750430450641,2.09680928,105340.0,105330.0,0.15832]
[1750430451141,2.09680928,105340.0,105330.0,0.15752]
[1750430451441,2.09680928,105340.0,105330.0,0.0134]
[1750430452246,2.305361,105340.0,105330.0,0.0134]
[1750430452544,0.1898645,105330.0,105320.0,0.15130944]
[1750430452738,1.71858084,105330.0,105320.0,0.15050944]
[1750430453041,2.51624011,105330.0,105320.0,0.00134944]
[1750430453341,3.51282658,105330.0,105320.0,4e-08]
[1750430453537,3.76282658,105330.0,105320.0,4e-08]
[1750430453737,0.20705994,105310.0,105300.0,0.14956]
[1750430453941,2.64101283,105310.0,105300.0,0.15036]
[1750430454140,2.7058641,105310.0,105300.0,0.15036]
[1750430454338,2.7058641,105310.0,105300.0,0.0008]
[1750430454539,0.1899185,105300.0,105290.0,0.00094971]
[1750430454841,1.56019139,105300.0,105290.0,0.00134971]
[1750430455047,1.56044266,105300.0,105290.0,0.00134971]
[1750430455241,1.63485206,105300.0,105290.0,0.00094971]
[1750430455447,1.63485206,105300.0,105290.0,0.00134971]
[1750430456150,0.66538466,105300.0,105290.0,0.19128621]
[1750430456342,0.2374377,105300.0,105290.0,0.25638621]
[1750430456743,0.2204377,105300.0,105290.0,0.25738621]
[1750430456939,0.5812377,105300.0,105290.0,0.25738621]
[1750430457340,0.5822377,105300.0,105290.0,0.25738621]
[1750430457749,0.2214377,105300.0,105290.0,0.25738621]
[1750430457944,0.5614377,105300.0,105290.0,0.25738621]
[1750430458149,0.9222377,105300.0,105290.0,0.25738621]
[1750430458451,1.4039957,105300.0,105290.0,0.25738621]
[1750430458640,1.6039957,105300.0,105290.0,0.25738621]
[1750430458947,1.6039957,105300.0,105290.0,0.03504971]
[1750430459253,1.6668957,105300.0,105290.0,0.03504971]
[1750430459753,1.6668957,105300.0,105290.0,0.00234971]
[1750430460248,1.6668957,105300.0,105290.0,0.00194971]
[1750430460446,2.2768557,105300.0,105290.0,0.00234971]
[1750430460649,2.33270266,105300.0,105290.0,0.00194971]
[1750430461544,2.33270266,105300.0,105290.0,0.00234971]
[1750430461745,2.2768557,105300.0,105290.0,0.00194971]
[1750430461948,2.2768557,105300.0,105290.0,0.00234971]
[1750430462146,2.33270537,105300.0,105290.0,0.00234971]
[1750430462653,2.33306537,105300.0,105290.0,0.00234971]
[1750430463849,2.2772157,105300.0,105290.0,0.00234971]
[1750430464049,0.1899726,105270.0,105260.0,0.00254998]
[1750430464252,0.1900268,105240.0,105230.0,0.15059025]
[1750430464549,1.54035527,105240.0,105230.0,0.18283898]
[1750430464757,1.08060654,105240.0,105230.0,0.03319898]
[1750430464945,1.07060654,105240.0,105230.0,0.06479898]
[1750430465141,2.00843521,105240.0,105230.0,0.00109898]
[1750430465345,1.98411581,105240.0,105230.0,0.00109898]
[1750430465548,2.03993521,105240.0,105230.0,0.00109898]
[1750430465745,2.03993521,105240.0,105210.0,0.0325]
[1750430465746,0.1900629,105220.0,105210.0,0.0325]
[1750430465946,1.7409401,105220.0,105210.0,0.2550809]
[1750430466141,0.93943337,105220.0,105210.0,0.2550809]
[1750430466347,0.22783337,105220.0,105210.0,0.2554809]
[1750430466551,0.94863337,105220.0,105210.0,0.2554809]
[1750430466853,1.38039137,105220.0,105210.0,0.2554809]
[1750430467047,1.06039137,105220.0,105210.0,0.2554809]
[1750430467448,1.06139137,105220.0,105210.0,0.2594809]
[1750430467647,1.44139137,105220.0,105210.0,0.2594809]
[1750430467950,1.06139137,105220.0,105210.0,0.2594809]
[1750430468150,0.70059137,105220.0,105210.0,0.2614809]
[1750430468455,0.207247,105230.0,105220.0,0.1900628]
[1750430468751,0.28160435,105230.0,105220.0,0.2537628]
[1750430469144,0.04404255,105230.0,105220.0,1.0963208]
[1750430469353,0.00050254,105240.0,105230.0,0.1900448]
[1750430469554,0.19052924,105240.0,105230.0,0.9860648]
[1750430470150,0.67228724,105240.0,105230.0,0.2221448]
[1750430470347,0.69914453,105240.0,105230.0,0.9863048]
[1750430470543,0.02717017,105240.0,105230.0,1.8298628]
[1750430470856,0.00150254,105240.0,105230.0,2.65533706]
[1750430471357,0.00150254,105240.0,105230.0,2.28533706]
[1750430471654,0.00250254,105240.0,105230.0,2.63533706]
[1750430471848,0.00250254,105240.0,105230.0,2.63613706]
[1750430472441,0.00250254,105240.0,105230.0,2.64613706]
[1750430472651,0.00250254,105240.0,105230.0,2.67633706]
[1750430473043,0.01725101,105270.0,105260.0,0.1899906]
[1750430473243,0.02669385,105270.0,105260.0,1.56381579]
[1750430473450,0.04375427,105280.0,105270.0,0.1899725]
[1750430473643,0.59450877,105280.0,105270.0,0.25152377]
[1750430473843,1.07626677,105280.0,105270.0,0.25152377]
[1750430474249,1.07626677,105280.0,105270.0,0.25192377]
[1750430474452,0.04375427,105280.0,105270.0,0.25192377]
[1750430474846,0.23370877,105280.0,105270.0,0.25192377]
[1750430475047,0.04375427,105280.0,105270.0,0.61272377]
[1750430475249,0.23370877,105280.0,105270.0,0.61272377]
[1750430475554,1.07626677,105280.0,105270.0,0.82703127]
[1750430475751,1.41626677,105280.0,105270.0,0.14993127]
[1750430475953,1.48026677,105280.0,105270.0,0.15333127]
[1750430476153,0.62660877,105280.0,105270.0,0.34490377]
[1750430476353,1.12726677,105280.0,105270.0,0.37580377]
[1750430476554,1.07726677,105280.0,105270.0,0.40640377]
[1750430477051,1.07726677,105280.0,105270.0,0.40940377]
[1750430477551,1.07726677,105280.0,105270.0,0.83519127]
[1750430477753,1.13966677,105280.0,105270.0,1.02276387]